fUSD/lending_fUSD_20250607
["ID","MTS","AMOUNT","RATE_DAILY","PERIOD"]
[364861862,1749282638660,-4780.13102871,0.00019558,2]
[364861864,1749282638670,-4780.13102871,0.00019558,2]
[364861866,1749282638681,-4780.13102871,0.00019558,2]
[364861869,1749282638692,-4780.13102871,0.00019558,2]
[364861870,1749282638702,-4780.13102871,0.00019558,2]
[364861872,1749282638712,-4780.13102871,0.00019558,2]
[364861875,1749282638722,-4780.13102871,0.00019558,2]
[364861876,1749282638731,-4780.13102871,0.00019558,2]
[364861878,1749282638740,-4780.13102871,0.00019558,2]
[364861880,1749282638749,-4780.13102871,0.00019558,2]
[364861882,1749282638759,-4780.13102871,0.00019558,2]
[364861884,1749282638769,-4780.13102871,0.00019558,2]
[364861887,1749282638779,-4780.13102871,0.00019558,2]
[364861889,1749282638789,-4780.13102871,0.00019558,2]
[364861891,1749282638800,-4780.13102871,0.00019558,2]
[364861893,1749282638809,-4780.13102871,0.00019558,2]
[364861895,1749282638819,-4780.13102871,0.00019558,2]
[364861897,1749282638828,-4780.13102871,0.00019558,2]
[364861899,1749282638838,-4780.13102871,0.00019558,2]
[364861901,1749282638847,-4780.13102871,0.00019558,2]
[364861903,1749282638859,-4780.13102871,0.00019558,2]
[364861905,1749282638871,-4780.13102871,0.00019558,2]
[364861907,1749282638881,-4780.13102871,0.00019558,2]
[364861909,1749282638890,-4780.13102871,0.00019558,2]
[364861911,1749282638900,-4780.13102871,0.00019558,2]
[364861913,1749282638909,-4780.13102871,0.00019558,2]
[364861915,1749282638918,-4780.13102871,0.00019558,2]
[364861917,1749282638928,-4780.13102871,0.00019558,2]
[364861919,1749282638938,-4780.13102871,0.00019558,2]
[364861921,1749282638947,-4780.13102871,0.00019558,2]
[364861923,1749282638956,-4780.13102871,0.00019558,2]
[364861925,1749282638966,-4780.13102871,0.00019558,2]
[364861927,1749282638976,-4780.13102871,0.00019558,2]
[364861928,1749282638985,-4780.13102871,0.00019558,2]
[364861930,1749282638995,-4780.13102871,0.00019558,2]
[364861932,1749282639004,-4780.13102871,0.00019558,2]
[364861934,1749282639014,-4780.13102871,0.00019558,2]
[364861936,1749282639023,-4780.13102871,0.00019558,2]
[364861938,1749282639032,-4780.13102871,0.00019558,2]
[364861940,1749282639042,-4780.13102871,0.00019558,2]
[364861942,1749282639051,-4780.13102871,0.00019558,2]
[364861944,1749282639061,-4780.13102871,0.00019558,2]
[364861946,1749282639071,-4780.13102871,0.00019558,2]
[364861948,1749282639080,-164085.06906659,0.00019559,2]
[364861950,1749282639090,-3592.5033722,0.00019573,2]
[364861952,1749282639099,-1900.6792917,0.00019573,2]
[364861954,1749282639108,-494.0,0.00019586,2]
[364861956,1749282639117,-37306.6754583,0.00019587,2]
[364861958,1749282639127,-2200.0,0.000196,7]
[364861960,1749282639136,-3400.0,0.000197,7]
[364861962,1749282639146,-163.73430845,0.000197,2]
[364861964,1749282639156,-163.73430842,0.0001975,2]
[364861966,1749282639165,-9162.5190218,0.00019775,2]
[364861968,1749282639175,-33341.3792449,0.00019775,2]
[364861970,1749282639185,-8260.47,0.0001978,2]
[364861972,1749282639194,-241.4977769,0.00019781,2]
[364861974,1749282639207,-500.0,0.00019789,2]
[364861976,1749282639217,-316.76688288,0.00019789,2]
[364861978,1749282639226,-275.00233285,0.00019789,2]
[364861980,1749282639236,-500.0,0.00019789,2]
[364861982,1749282639245,-598.64102891,0.00019789,2]
[364861984,1749282639255,-196.52681074,0.00019789,2]
[364861986,1749282639264,-1097.45088849,0.00019789,2]
[364861988,1749282639274,-9595.1811916,0.0001979,2]
[364861990,1749282639284,-138033.47446843,0.0001979,2]
[364861992,1749282639294,-207.20952819,0.00019792,2]
[364861994,1749282639304,-4500.0,0.000198,7]
[364861996,1749282639314,-163.73430842,0.000198,2]
[364861998,1749282639323,-163.73430842,0.0001985,2]
[364862000,1749282639333,-19742.38342928,0.00019876,2]
[364862002,1749282639342,-19742.38342923,0.00019879,2]
[364862004,1749282639351,-19742.38342923,0.00019881,2]
[364862006,1749282639361,-19742.38342923,0.00019884,2]
[364862008,1749282639371,-19742.38342923,0.00019887,2]
[364862010,1749282639380,-19742.38342923,0.00019889,2]
[364862012,1749282639390,-19742.38342923,0.00019892,2]
[364862014,1749282639399,-19742.38342923,0.00019895,2]
[364862016,1749282639409,-19742.38342923,0.00019897,2]
[364862018,1749282639419,-160.66128485,0.000199,2]
[364862020,1749282639428,-208.79538909,0.000199,2]
[364862022,1749282639437,-495.74977153,0.000199,2]
[364862024,1749282639447,-5600.0,0.000199,7]
[364862026,1749282639456,-19742.38342923,0.000199,2]
[364862028,1749282639466,-163.73430842,0.000199,2]
[364862030,1749282639476,-163.07524585,0.000199,2]
[364862032,1749282639485,-196.14488394,0.000199,3]
[364862034,1749282639495,-4137.01193359,0.000199,2]
[364862036,1749282639504,-263.61830404,0.000199,2]
[364862038,1749282639514,-32759.15677362,0.000199,2]
[364862039,1749282639523,-8260.47,0.00019965,2]
[364862042,1749282639534,-350.0,0.00019965,2]
[364862044,1749282639543,-163.52308715,0.00019973,2]
[364862046,1749282639553,-500.68927136,0.00019973,2]
[364862048,1749282639563,-195.24348751,0.00019973,2]
[364862050,1749282639572,-166.10030881,0.00019973,2]
[364862052,1749282639582,-166.93116618,0.00019973,2]
[364862054,1749282639592,-156.18083481,0.00019973,2]
[364862055,1749282639602,-500.0,0.00019973,2]
[364862058,1749282639611,-521.90253048,0.00019973,2]
[364862059,1749282639621,-500.0,0.00019973,2]
[364862062,1749282639631,-502.19789294,0.00019973,2]
[364862064,1749282639640,-168.20676347,0.00019973,2]
[364862065,1749282639650,-500.0,0.00019973,2]
[364862067,1749282639660,-504.88878207,0.00019973,2]
[364862069,1749282639670,-500.0,0.00019973,2]
[364862071,1749282639680,-502.88261495,0.00019973,2]
[364862073,1749282639691,-500.43339217,0.00019973,2]
[364862075,1749282639701,-157.38247964,0.00019973,2]
[364862077,1749282639711,-500.0,0.00019973,2]
[364862079,1749282639720,-500.0,0.00019973,2]
[364862081,1749282639730,-437.40170607,0.00019973,2]
[364862083,1749282639740,-501.1470255,0.00019973,2]
[364862085,1749282639749,-500.0,0.00019973,2]
[364862087,1749282639759,-159.81357408,0.00019973,2]
[364862089,1749282639768,-359.6059757,0.00019973,2]
[364862091,1749282639778,-500.0,0.00019973,2]
[364862093,1749282639787,-500.0,0.00019973,2]
[364862095,1749282639796,-159.855648,0.00019973,2]
[364862097,1749282639805,-159.855648,0.00019973,2]
[364862099,1749282639814,-923.513,0.00019973,2]
[364862101,1749282639824,-14398.80546917,0.00019975,2]
[364862103,1749282639834,-1252.39902294,0.00019975,5]
[364862105,1749282639843,-250.0,0.00019976,2]
[364862107,1749282639853,-11113.1253041,0.00019976,2]
[364862109,1749282639866,-7014.7439445,0.00019976,2]
[364862111,1749282639876,-7918.968611,0.00019976,2]
[364862113,1749282639885,-151.83,0.00019976,2]
[364862114,1749282639895,-151.83,0.00019976,2]
[364862116,1749282639907,-41123.93958327,0.00019985,2]
[364862118,1749282639918,-500.0,0.00019985,2]
[364862120,1749282639928,-1120.0,0.00019985,2]
[364862122,1749282639939,-12725.10309202,0.00019985,2]
[364862124,1749282639948,-500.0,0.00019985,2]
[364862126,1749282639958,-150.0,0.00019985,2]
[364862128,1749282639969,-500.0,0.00019985,2]
[364862130,1749282639979,-10957.00112,0.00019986,2]
[364862133,1749282639989,-7669.4995214,0.00019986,2]
[364862135,1749282639998,-8299.3061715,0.00019986,2]
[364862137,1749282640007,-39245.7794934,0.00019986,2]
[364862139,1749282640016,-9638.7629484,0.00019986,2]
[364862141,1749282640026,-35074.3774881,0.00019986,2]
[364862143,1749282640035,-3700.9971286,0.00019986,2]
[364862145,1749282640045,-1958.0798881,0.00019986,2]
[364862147,1749282640054,-261200.1733887,0.00019986,2]
[364862149,1749282640064,-151.83,0.0001999,2]
[364862151,1749282640073,-151.83,0.0001999,2]
[364862153,1749282640083,-151.83,0.0001999,2]
[364862155,1749282640093,-151.83,0.0001999,2]
[364862157,1749282640102,-151.83,0.0001999,2]
[364862159,1749282640111,-151.83,0.0001999,2]
[364862161,1749282640120,-151.83,0.0001999,2]
[364862163,1749282640129,-151.83,0.0001999,2]
[364862165,1749282640139,-151.83,0.0001999,2]
[364862167,1749282640149,-151.83,0.0001999,2]
[364862169,1749282640158,-151.83,0.0001999,2]
[364862170,1749282640168,-151.83,0.0001999,2]
[364862172,1749282640178,-151.83,0.0001999,2]
[364862174,1749282640187,-151.83,0.0001999,2]
[364862176,1749282640197,-151.83,0.0001999,2]
[364862178,1749282640207,-151.83,0.0001999,2]
[364862180,1749282640217,-151.83,0.0001999,2]
[364862182,1749282640227,-151.83,0.0001999,2]
[364862184,1749282640236,-151.83,0.0001999,2]
[364862186,1749282640247,-1297.19531017,0.0001999,2]
[364862188,1749282640257,-1297.19531017,0.0001999,2]
[364862190,1749282640266,-300.0,0.00019999,2]
[364862192,1749282640276,-672.89282082,0.00019999,2]
[364862194,1749282640286,-300.0,0.00019999,2]
[364862196,1749282640295,-253.12,0.00019999,2]
[364862198,1749282640305,-795.90281801,0.00019999,5]
[364862200,1749282640315,-500.0,0.00019999,2]
[364862202,1749282640325,-150.0,0.00019999,2]
[364862204,1749282640334,-155.45224996,0.00019999,2]
[364862206,1749282640344,-500.0,0.00019999,2]
[364862208,1749282640353,-150.0,0.00019999,2]
[364862210,1749282640363,-150.0,0.00019999,2]
[364862212,1749282640372,-500.0,0.00019999,2]
[364862214,1749282640381,-500.0,0.00019999,2]
[364862216,1749282640391,-500.0,0.00019999,2]
[364862218,1749282640400,-150.0,0.00019999,2]
[364862220,1749282640410,-500.0,0.00019999,2]
[364862222,1749282640419,-500.0,0.00019999,2]
[364862224,1749282640430,-500.0,0.00019999,2]
[364862226,1749282640439,-150.0,0.00019999,2]
[364862228,1749282640449,-500.0,0.00019999,2]
[364862230,1749282640458,-150.0,0.00019999,2]
[364862231,1749282640467,-500.0,0.00019999,2]
[364862233,1749282640477,-500.0,0.00019999,2]
[364862236,1749282640487,-1671.0,0.00019999,2]
[364862237,1749282640497,-150.0,0.00019999,2]
[364862240,1749282640507,-500.0,0.00019999,2]
[364862242,1749282640516,-150.96943052,0.00019999,2]
[364862244,1749282640525,-150.0,0.00019999,2]
[364862246,1749282640535,-150.0,0.00019999,2]
[364862248,1749282640544,-1162386.12223597,0.0002,2]
[364862250,1749282640553,-53935.16034816,0.0002,2]
[364862252,1749282640562,-225.84259437,0.0002,2]
[364862254,1749282640572,-2691016.11197259,0.0002,2]
[364862256,1749282640581,-1000.0,0.0002,2]
[364862258,1749282640591,-93993.07987276,0.0002,2]
[364862260,1749282640601,-151.0,0.0002,2]
[364862262,1749282640611,-4000.0,0.0002,4]
[364862264,1749282640621,-6417.92877,0.0002,2]
[364862266,1749282640630,-202.192633,0.0002,2]
[364862268,1749282640640,-500.0,0.00020012,2]
[364862270,1749282640649,-1120.0,0.00020012,2]
[364862271,1749282640658,-500.0,0.00020012,2]
[364862274,1749282640668,-500.0,0.00020012,2]
[364862275,1749282640679,-500.0,0.00020026,2]
[364862277,1749282640688,-150.0,0.00020026,2]
[364862279,1749282640698,-500.0,0.00020026,2]
[364862281,1749282640708,-150.0,0.00020026,2]
[364862283,1749282640718,-150.0,0.00020026,2]
[364862285,1749282640728,-500.0,0.00020026,2]
[364862287,1749282640737,-500.0,0.00020026,2]
[364862289,1749282640746,-500.0,0.00020026,2]
[364862291,1749282640756,-255.00578496,0.00020026,2]
[364862293,1749282640766,-500.0,0.00020026,2]
[364862295,1749282640775,-500.0,0.00020026,2]
[364862297,1749282640785,-500.0,0.00020026,2]
[364862299,1749282640795,-201.6572608,0.00020026,2]
[364862301,1749282640805,-500.0,0.00020026,2]
[364862303,1749282640815,-206.02997179,0.00020026,2]
[364862305,1749282640824,-500.0,0.00020026,2]
[364862307,1749282640834,-500.0,0.00020026,2]
[364862309,1749282640843,-1671.0,0.00020026,2]
[364862311,1749282640853,-150.0,0.00020026,2]
[364862313,1749282640867,-500.0,0.00020026,2]
[364862315,1749282640876,-150.0,0.00020026,2]
[364862317,1749282640885,-150.55132188,0.00020026,2]
[364862319,1749282640895,-500.0,0.0002004,2]
[364862321,1749282640906,-1120.0,0.0002004,2]
[364862323,1749282640916,-500.0,0.0002004,2]
[364862325,1749282640926,-500.0,0.0002004,2]
[364862327,1749282640936,-500.0,0.00020054,2]
[364862329,1749282640946,-201.37534164,0.00020054,2]
[364862331,1749282640955,-500.0,0.00020054,2]
[364862333,1749282640965,-150.0,0.00020054,2]
[364862335,1749282640974,-150.0,0.00020054,2]
[364862337,1749282640984,-500.0,0.00020054,2]
[364862339,1749282640994,-500.0,0.00020054,2]
[364862341,1749282641003,-489.24798574,0.00020054,2]
[364862342,1749282641012,-500.0,0.00020054,2]
[364862343,1749282641021,-500.0,0.00020054,2]
[364862344,1749282641031,-500.0,0.00020054,2]
[364862345,1749282641039,-165.44350681,0.00020054,2]
[364862346,1749282641049,-500.0,0.00020054,2]
[364862347,1749282641058,-500.0,0.00020054,2]
[364862348,1749282641067,-1671.0,0.00020054,2]
[364862349,1749282641076,-150.0,0.00020054,2]
[364862350,1749282641085,-500.0,0.00020054,2]
[364862351,1749282641094,-150.0,0.00020054,2]
[364862352,1749282641103,-500.0,0.00020067,2]
[364862353,1749282641113,-1120.0,0.00020067,2]
[364862354,1749282641122,-500.0,0.00020067,2]
[364862355,1749282641131,-500.0,0.00020067,2]
[364862356,1749282641141,-1000.0,0.00020078,2]
[364862357,1749282641150,-500.0,0.00020081,2]
[364862358,1749282641159,-395.74451207,0.00020081,2]
[364862359,1749282641168,-150.0,0.00020081,2]
[364862360,1749282641177,-150.0,0.00020081,2]
[364862361,1749282641187,-500.0,0.00020081,2]
[364862362,1749282641196,-463.97218168,0.00020081,2]
[364862363,1749282641205,-500.0,0.00020081,2]
[364862365,1749282641215,-500.0,0.00020081,2]
[364862367,1749282641224,-500.0,0.00020081,2]
[364862369,1749282641234,-500.0,0.00020081,2]
[364862371,1749282641244,-155.46701861,0.00020081,2]
[364862373,1749282641253,-1671.0,0.00020081,2]
[364862375,1749282641262,-201.21113638,0.00020081,2]
[364862377,1749282641272,-500.0,0.00020081,2]
[364862379,1749282641283,-150.0,0.00020081,2]
[364862381,1749282641292,-500.0,0.00020095,2]
[364862383,1749282641302,-1120.0,0.00020095,2]
[364862385,1749282641312,-304.04309163,0.00020095,2]
[364862387,1749282641322,-500.0,0.00020095,2]
[364862389,1749282641332,-408.46492253,0.00020109,2]
[364862391,1749282641342,-154.81865164,0.00020109,2]
[364862392,1749282641352,-150.0,0.00020109,2]
[364862394,1749282641362,-500.0,0.00020109,2]
[364862396,1749282641371,-500.0,0.00020109,2]
[364862398,1749282641381,-500.0,0.00020109,2]
[364862400,1749282641391,-500.0,0.00020109,2]
[364862402,1749282641402,-500.0,0.00020109,2]
[364862404,1749282641411,-1671.0,0.00020109,2]
[364862406,1749282641421,-500.0,0.00020109,2]
[364862408,1749282641430,-150.0,0.00020109,2]
[364862411,1749282641440,-500.0,0.00020122,2]
[364862412,1749282641449,-1120.0,0.00020122,2]
[364862414,1749282641459,-500.0,0.00020122,2]
[364862417,1749282641468,-170.35901753,0.00020136,2]
[364862418,1749282641478,-254.88450249,0.00020136,2]
[364862420,1749282641487,-500.0,0.00020136,2]
[364862422,1749282641497,-500.0,0.00020136,2]
[364862424,1749282641506,-500.0,0.00020136,2]
[364862426,1749282641515,-500.0,0.00020136,2]
[364862428,1749282641524,-1671.0,0.00020136,2]
[364862430,1749282641534,-500.0,0.00020136,2]
[364862432,1749282641543,-178.49168584,0.00020136,2]
[364862434,1749282641552,-500.0,0.00020149,2]
[364862436,1749282641562,-1120.0,0.00020149,2]
[364862438,1749282641571,-500.0,0.00020149,2]
[364862440,1749282641580,-500.0,0.00020163,2]
[364862442,1749282641589,-500.0,0.00020163,2]
[364862444,1749282641599,-500.0,0.00020163,2]
[364862446,1749282641608,-500.0,0.00020163,2]
[364862448,1749282641617,-1671.0,0.00020163,2]
[364862450,1749282641632,-500.0,0.00020163,2]
[364862452,1749282641642,-500.0,0.00020177,2]
[364862454,1749282641652,-1120.0,0.00020177,2]
[364862456,1749282641662,-500.0,0.00020177,2]
[364862459,1749282641672,-183.98,0.00020187,2]
[364862461,1749282641681,-500.0,0.00020191,2]
[364862463,1749282641692,-500.0,0.00020191,2]
[364862465,1749282641702,-439.93214716,0.00020191,2]
[364862467,1749282641712,-500.0,0.00020191,2]
[364862469,1749282641722,-1671.0,0.00020191,2]
[364862471,1749282641732,-500.0,0.00020191,2]
[364862473,1749282641741,-455.22703741,0.00020204,2]
[364862475,1749282641750,-1120.0,0.00020204,2]
[364862477,1749282641760,-500.0,0.00020204,2]
[364862479,1749282641770,-500.0,0.00020218,2]
[364862481,1749282641780,-500.0,0.00020218,2]
[364862483,1749282641790,-500.0,0.00020218,2]
[364862485,1749282641799,-1671.0,0.00020218,2]
[364862487,1749282641811,-279.09263784,0.00020218,2]
[364862488,1749282641820,-1120.0,0.00020232,2]
[364862490,1749282641829,-500.0,0.00020232,2]
[364862492,1749282641839,-354.46494929,0.00020246,2]
[364862493,1749282641849,-500.0,0.00020246,2]
[364862495,1749282641862,-500.0,0.00020246,2]
[364862497,1749282641872,-1671.0,0.00020246,2]
[364862499,1749282641883,-1120.0,0.00020259,2]
[364862501,1749282641892,-500.0,0.00020259,2]
[364862503,1749282641903,-500.0,0.00020273,2]
[364862505,1749282641914,-500.0,0.00020273,2]
[364862507,1749282641924,-1671.0,0.00020273,2]
[364862509,1749282641934,-1120.0,0.00020286,2]
[364862511,1749282641945,-500.0,0.00020286,2]
[364862513,1749282641955,-500.0,0.000203,2]
[364862515,1749282641964,-500.0,0.000203,2]
[364862517,1749282641974,-1671.0,0.000203,2]
[364862519,1749282641984,-1120.0,0.00020314,2]
[364862521,1749282641993,-500.0,0.00020314,2]
[364862523,1749282642003,-500.0,0.00020328,2]
[364862525,1749282642013,-1671.0,0.00020328,2]
[364862527,1749282642023,-1120.0,0.00020341,2]
[364862529,1749282642033,-240.37359258,0.00020341,2]
[364862531,1749282642042,-500.0,0.00020355,2]
[364862533,1749282642052,-1671.0,0.00020355,2]
[364862535,1749282642062,-205.0,0.00020356,2]
[364862537,1749282642072,-206.0,0.00020356,2]
[364862539,1749282642083,-1120.0,0.00020369,2]
[364862541,1749282642093,-626.03327308,0.00020383,2]
[364862543,1749282642102,-1671.0,0.00020383,2]
[364862545,1749282642112,-1120.0,0.00020396,2]
[364862547,1749282642122,-1671.0,0.0002041,2]
[364862549,1749282642131,-1120.0,0.00020423,2]
[364862551,1749282642142,-151.83,0.00020435,2]
[364862553,1749282642152,-1671.0,0.00020437,2]
[364862555,1749282642162,-150.0,0.00020445,2]
[364862557,1749282642172,-1120.0,0.00020451,2]
[364862559,1749282642181,-1671.0,0.00020465,2]
[364862561,1749282642191,-1120.0,0.00020478,2]
[364862563,1749282642200,-1671.0,0.00020492,2]
[364862565,1749282642210,-1120.0,0.00020506,2]
[364862567,1749282642219,-1671.0,0.0002052,2]
[364862569,1749282642229,-1000.0,0.00020521,2]
[364862571,1749282642239,-1000.0,0.00020521,2]
[364862573,1749282642248,-1006.44648061,0.00020521,2]
[364862575,1749282642259,-794.42067056,0.00020521,2]
[364862577,1749282642269,-1000.0,0.00020521,2]
[364862579,1749282642278,-1000.0,0.00020521,2]
[364862581,1749282642288,-500.0,0.00020521,2]
[364862583,1749282642299,-1120.0,0.00020533,2]
[364862585,1749282642309,-1671.0,0.00020547,2]
[364862587,1749282642319,-1148.52996,0.0002055,2]
[364862589,1749282642329,-1120.0,0.0002056,2]
[364862591,1749282642339,-1671.0,0.00020574,2]
[364862593,1749282642349,-1120.0,0.00020588,2]
[364862594,1749282642359,-1671.0,0.00020602,2]
[364862596,1749282642369,-1134.34796335,0.00020615,2]
[364862598,1749282642379,-1694.3689748,0.00020629,2]
[364862601,1749282642390,-6526.7702362,0.000207,2]
[364862603,1749282642400,-241.4977769,0.00020902,2]
[364862605,1749282642410,-181.46,0.00020986,2]
[364862606,1749282642419,-870.51015595,0.00021,2]
[364862608,1749282642429,-1512.59331625,0.00021068,2]
[364862610,1749282642438,-500.0,0.00021068,2]
[364862612,1749282642448,-1500.0,0.00021068,2]
[364862614,1749282642457,-1148.52997,0.0002117,2]
[364862616,1749282642467,-1680.0,0.00021346,2]
[364862618,1749282642477,-253.12,0.00021369,2]
[364862620,1749282642487,-4000.0,0.00021429,4]
[364862622,1749282642497,-250.0,0.0002145,2]
[364862625,1749282642507,-300.0,0.0002145,2]
[364862627,1749282642518,-800.0,0.0002145,4]
[364862629,1749282642527,-495.74977148,0.00021462,2]
[364862631,1749282642538,-1342.5,0.0002161,2]
[364862632,1749282642547,-1961.58275095,0.00021616,2]
[364862635,1749282642558,-1148.52997,0.000218,2]
[364862636,1749282642568,-500.0,0.00021918,2]
[364862639,1749282642578,-150.0,0.00021918,2]
[364862641,1749282642588,-318.23,0.00021945,30]
[364862643,1749282642598,-350.39756868,0.00021945,2]
[364862645,1749282642608,-208.79538909,0.0002195,2]
[364862647,1749282642618,-241.4977769,0.00022022,2]
[364862678,1749282642906,-197.48,0.00022033,2]
[364862680,1749282642917,-181.46,0.00022036,2]
[364862682,1749282642927,-2650.88939156,0.00022098,2]
[364862684,1749282642937,-3809.490885,0.0002218,2]
[364862686,1749282642946,-2015.4804845,0.0002218,2]
[364862687,1749282642956,-268857.1877002,0.0002218,2]
[364862689,1749282642966,-17392.66,0.00022195,2]
[364862691,1749282642975,-6417.92877,0.0002229,2]
[364862693,1749282642984,-1148.52997,0.0002242,2]
[364862696,1749282642995,-1000.0,0.00022588,2]
[364862697,1749282643004,-253.12,0.00022739,2]
[364862700,1749282643013,-4000.0,0.00022857,4]
[364862702,1749282643024,-495.74977148,0.00023023,2]
[364862704,1749282643035,-1148.52997,0.0002305,2]
[364862706,1749282643045,-181.46,0.00023085,2]
[364862708,1749282643054,-241.4977769,0.00023143,2]
[364862710,1749282643064,-2351.0,0.00023368,2]
[364862712,1749282643074,-494.09713051,0.000235,9]
[364862714,1749282643084,-494.09713034,0.000235,9]
[364862716,1749282643094,-494.09713034,0.000235,9]
[364862718,1749282643105,-494.09713034,0.000235,9]
[364862720,1749282643115,-494.09713034,0.000235,9]
[364862721,1749282643125,-494.09713034,0.000235,9]
[364862723,1749282643135,-494.09713034,0.000235,9]
[364862725,1749282643145,-494.09713034,0.000235,9]
[364862728,1749282643156,-494.09713034,0.000235,9]
[364862730,1749282643166,-494.09713034,0.000235,9]
[364862732,1749282643176,-303.44,0.00023604,2]
[364862734,1749282643186,-205.0,0.0002366,6]
[364862736,1749282643196,-1148.52996,0.0002367,2]
[364862738,1749282643206,-1000.0,0.00023675,2]
[364862740,1749282643216,-494.09713034,0.00023693,9]
[364862742,1749282643226,-167.88,0.00023836,2]
[364862744,1749282643236,-1342.5,0.00023874,2]
[364862747,1749282643246,-208.79538909,0.00024,2]
[364862749,1749282643256,-503.36339751,0.00024,2]
[364862750,1749282643265,-151.0,0.00024009,7]
[364862752,1749282643276,-354.436695,0.00024009,7]
[364862753,1749282643285,-354.436695,0.00024009,7]
[364862755,1749282643295,-151.0,0.00024012,2]
[364862758,1749282643306,-743.78759815,0.00024012,2]
[364862760,1749282643316,-151.0,0.00024012,2]
[364862761,1749282643327,-207.4,0.00024012,2]
[364862764,1749282643336,-494.09713034,0.00024072,10]
[364862766,1749282643347,-253.12,0.00024109,2]
[364862768,1749282643357,-218.42161716,0.00024109,2]
[364862770,1749282643366,-181.46,0.00024134,2]
[364862772,1749282643376,-303.64,0.00024138,2]
[364862773,1749282643385,-241.4977769,0.00024264,2]
[364862775,1749282643395,-4000.0,0.00024286,4]
[364862777,1749282643405,-494.09713034,0.00024452,11]
[364862779,1749282643415,-289.83089557,0.0002456,2]
[364862781,1749282643425,-495.74977148,0.00024585,2]
[364862783,1749282643434,-151.0,0.00024613,15]
[364862785,1749282643444,-1000.0,0.00024658,2]
[364862787,1749282643454,-615.05316385,0.00024658,2]
[364862788,1749282643464,-500.0,0.00024658,2]
[364862789,1749282643474,-500.0,0.00024658,2]
[364862790,1749282643484,-500.0,0.00024658,2]
[364862791,1749282643494,-500.0,0.00024658,2]
[364862792,1749282643504,-500.0,0.00024658,2]
[364862793,1749282643514,-500.0,0.00024658,2]
[364862794,1749282643523,-500.0,0.00024658,2]
[364862795,1749282643533,-500.0,0.00024658,2]
[364862796,1749282643543,-500.0,0.00024658,2]
[364862797,1749282643554,-500.0,0.00024658,2]
[364862799,1749282643565,-500.0,0.00024658,2]
[364862801,1749282643575,-500.0,0.00024658,2]
[364862803,1749282643585,-500.0,0.00024658,2]
[364862805,1749282643595,-561.24402605,0.00024658,2]
[364862807,1749282643605,-500.0,0.00024658,2]
[364862809,1749282643615,-202.192633,0.00024658,7]
[364862810,1749282643624,-197.65281716,0.000247,2]
[364862811,1749282643635,-41184.8835285,0.00024783,2]
[364862812,1749282643645,-10115.006875,0.00024783,2]
[364862814,1749282643655,-36807.3757314,0.00024783,2]
[364862816,1749282643665,-151.83,0.0002479,2]
[364862818,1749282643675,-151.83,0.0002479,2]
[364862820,1749282643684,-6417.92877,0.0002479,2]
[364862822,1749282643694,-300.0,0.00024799,10]
[364862824,1749282643703,-151.0,0.000248,7]
[364862826,1749282643715,-151.0,0.000248,7]
[364862828,1749282643725,-334906.571833,0.000248,2]
[364862829,1749282643735,-354.436695,0.000248,7]
[364862830,1749282643745,-354.436695,0.000248,7]
[364862832,1749282643755,-202.192633,0.000248,7]
[364862834,1749282643765,-494.09713034,0.00024831,12]
[364862836,1749282643774,-500.0,0.00024848,2]
[364862838,1749282643784,-500.0,0.00024873,2]
[364862839,1749282643794,-500.0,0.00024873,2]
[364862840,1749282643803,-159.855648,0.00024873,2]
[364862841,1749282643814,-500.0,0.00024873,2]
[364862842,1749282643823,-500.0,0.00024873,2]